bitfinex/quotes_ETHUSD_20241103
["timestamp","ask_amount","ask_price","bid_price","bid_amount"]
[1730675562267,3.66451,2456.0,2455.6,3.0]
[1730675562473,3.6643,2456.2,2455.5,0.7847]
[1730675562697,3.6643,2456.2,2455.7,3.6649]
[1730675563218,3.66441,2456.1,2455.8,0.04323128]
[1730675563713,4.0307,2456.2,2455.9,0.04320443]
[1730675563884,4.0307,2456.2,2455.7,3.6649]
[1730675564211,3.66427,2456.2,2455.8,0.04323128]
[1730675564577,3.66427,2456.2,2455.7,3.6649]
[1730675564813,3.66427,2456.2,2455.9,0.04320443]
[1730675565013,3.66427,2456.2,2455.8,0.04323128]
[1730675565175,3.66427,2456.2,2456.0,0.04317758]
[1730675565387,3.66427,2456.2,2455.7,3.6649]
[1730675566026,3.66427,2456.2,2455.8,0.04323128]
[1730675566423,3.66427,2456.2,2455.6,3.66499]
[1730675566721,4.030697,2456.2,2455.7,3.6649]
[1730675567032,4.030697,2456.2,2455.8,0.04319951]
[1730675567229,3.66436,2456.1,2455.8,0.04319951]
[1730675567410,3.66436,2456.1,2455.6,3.66499]
[1730675567411,0.7865,2456.0,2455.3,0.7847]
[1730675567620,3.66464,2455.9,2455.4,3.66528]
[1730675568092,3.66483,2455.8,2455.3,0.7847]
[1730675568427,3.66494,2455.8,2455.3,0.7847]
[1730675568630,3.66497,2455.7,2455.3,0.7847]
[1730675569694,3.66496,2455.7,2455.3,0.7847]
[1730675569885,3.66496,2455.7,2455.1,7.45053]
[1730675569886,3.66512,2455.6,2455.1,7.45053]
[1730675570085,3.66496,2455.7,2455.2,3.70933432]
[1730675570335,4.109874,2455.9,2455.2,0.04366432]
[1730675570547,7.774644,2455.9,2455.3,3.66541]
[1730675570692,7.774644,2455.9,2455.4,0.04360706]
[1730675570893,4.109874,2455.9,2455.4,0.04360706]
[1730675571086,4.109864,2455.9,2455.4,0.04360706]
[1730675571287,0.4896364,2455.8,2455.1,3.7847]
[1730675571490,3.66511,2455.6,2455.1,4.45053]
[1730675571731,3.66511,2455.6,2455.2,0.0436396]
[1730675572314,4.45158,2455.7,2455.2,0.0436396]
[1730675572647,3.66483,2455.8,2455.2,7.3748496]
[1730675573203,3.66483,2455.8,2455.3,3.66552]
[1730675573403,3.66483,2455.8,2455.2,3.7092296]
[1730675573717,3.66483,2455.8,2455.3,0.04364805]
[1730675573718,3.66494,2455.7,2455.3,0.04364805]
[1730675573924,3.66494,2455.7,2455.2,3.66559]
[1730675574144,3.66494,2455.7,2455.3,0.0436763]
[1730675574438,3.66509,2455.6,2455.2,3.66559]
[1730675574615,3.66509,2455.6,2455.4,0.04364944]
[1730675574815,3.66509,2455.6,2455.3,0.0436763]
[1730675574996,3.66509,2455.6,2455.5,0.04357667]
[1730675575200,3.66509,2455.6,2455.4,0.04360353]
[1730675575400,3.66509,2455.6,2455.5,0.04357667]
[1730675575841,3.66509,2455.6,2455.2,3.66559]
[1730675575999,3.66494,2455.7,2455.5,0.04358373]
[1730675576202,3.66494,2455.7,2455.2,3.66559]
[1730675576707,3.66483,2455.8,2455.3,0.04365864]
[1730675577041,7.32975,2455.8,2455.3,3.66552]
[1730675577217,3.66483,2455.8,2455.4,0.04363178]
[1730675577403,3.66494,2455.7,2455.4,0.04363178]
[1730675578355,3.66516,2455.6,2455.1,4.4504]
[1730675578516,4.476567,2455.7,2454.8,7.30760165]
[1730675578517,3.66594,2455.1,2454.8,0.42434328]
[1730675578729,3.66605,2455.0,2454.7,0.0611971]
[1730675579027,0.7796,2454.9,2454.7,0.0611971]
[1730675579451,3.66579,2455.2,2454.7,3.7276271]
[1730675579603,4.44517,2455.3,2454.8,3.66618]
[1730675579804,3.66569,2455.2,2454.7,7.3938871]
[1730675580048,3.66569,2455.2,2454.7,7.3938771]
[1730675580219,3.66569,2455.2,2454.7,3.7275271]
[1730675580628,3.66584,2455.1,2454.7,3.7275271]
[1730675580844,0.7796,2455.3,2454.7,3.7275171]
[1730675581044,7.33095,2455.4,2454.9,3.66606]
[1730675581351,3.66554,2455.3,2454.8,4.46118]
[1730675581564,3.66572,2455.2,2454.8,4.46118]
[1730675581742,3.66554,2455.3,2454.8,4.46118]
[1730675582070,3.66597,2455.1,2454.7,0.0611971]
[1730675582377,0.811047,2455.3,2454.7,0.0611971]
[1730675582378,3.66621,2454.9,2454.7,0.0611971]
[1730675582533,4.4456,2455.0,2454.7,0.0611971]
[1730675583759,0.7796,2455.0,2454.7,0.0611971]
[1730675584656,4.44561,2455.0,2454.7,0.0611971]
[1730675584956,0.7796,2455.0,2454.7,0.0611971]
[1730675585255,0.7796,2455.0,2454.8,0.04230536]
[1730675585440,3.66598,2455.1,2454.8,0.04230536]
[1730675585646,5.256297,2455.3,2454.8,0.04230536]
[1730675585820,3.66613,2454.9,2454.8,0.04230536]
[1730675586022,4.44573,2454.9,2454.8,0.04230536]
[1730675586281,3.66628,2454.8,2454.7,0.0611971]
[1730675587423,3.66628,2454.8,2454.7,0.10377266]
[1730675588123,4.43388,2454.8,2454.7,0.0611971]
[1730675588315,5.611482,2454.8,2454.7,0.0611971]
[1730675588858,4.843882,2454.8,2454.7,0.0611971]
[1730675589060,3.66628,2454.8,2454.7,0.0611971]
[1730675589357,7.33185,2455.1,2454.7,0.10391377]
[1730675589541,3.66592,2455.1,2454.7,0.10391377]
[1730675590029,0.5256297,2455.2,2454.7,3.77025377]
[1730675590366,3.66572,2455.2,2454.7,7.43657377]
[1730675590660,3.66572,2455.2,2454.7,7.43659377]
[1730675591455,3.66572,2455.2,2454.9,0.7608]
[1730675591848,3.66572,2455.2,2455.0,0.0429182]
[1730675594830,4.4329,2455.5,2455.0,0.0429182]
[1730675595029,3.66556,2455.3,2455.0,0.0429182]
[1730675595258,7.33122,2455.3,2455.0,0.0429182]
[1730675595676,0.7676,2455.1,2455.0,0.0429182]
[1730675595961,3.66604,2455.0,2454.7,0.0611971]
[1730675596163,3.66622,2454.9,2454.8,0.04285202]
[1730675596324,4.476203,2454.9,2454.8,0.04285202]
[1730675597124,3.66628,2454.8,2454.7,0.0611971]
[1730675597330,3.66628,2454.8,2454.7,0.10412185]
[1730675597836,4.43388,2454.8,2454.7,0.10412185]
[1730675598044,3.66755,2454.0,2453.6,0.77425088]
[1730675598341,7.3351,2454.0,2453.7,0.04183336]
[1730675598539,3.66765,2453.9,2453.7,0.04183336]
[1730675599130,3.66748,2454.0,2453.7,0.04183336]
[1730675599331,3.66778,2453.8,2453.7,0.04183336]
[1730675600059,3.6677,2453.9,2453.7,0.04183336]
[1730675600533,3.66749,2454.0,2453.7,0.04183336]
[1730675600728,4.477742,2454.0,2453.7,0.04183336]
[1730675600958,3.66774,2453.9,2453.7,0.04183336]
[1730675601759,7.3355,2453.9,2453.7,0.04183336]
[1730675601953,3.66778,2453.8,2453.7,0.04183336]
[1730675602161,3.66774,2453.9,2453.7,0.04183336]
[1730675602364,0.810252,2454.0,2453.7,0.04183336]
[1730675602668,3.66711,2454.3,2453.8,8.09225]
[1730675602860,3.66694,2454.4,2453.8,4.42449]
[1730675603059,3.66694,2454.4,2453.9,0.03958342]
[1730675603268,0.7892,2454.5,2453.9,3.70717342]
[1730675603461,4.456,2454.5,2454.0,3.66748]
[1730675603665,4.45573,2454.7,2454.1,3.66732]
[1730675603861,4.45573,2454.7,2454.3,3.66701]
[1730675603862,0.7892,2454.7,2454.3,3.66701]
[1730675604188,4.476223,2454.9,2454.4,0.0394525]
[1730675604189,3.66624,2454.9,2454.4,0.0394525]
[1730675604486,3.66621,2454.9,2454.4,0.0394525]
[1730675604631,3.66629,2454.8,2454.4,0.0394525]
[1730675605653,3.66621,2454.9,2454.4,3.7063025]
[1730675605863,3.66621,2454.9,2454.4,4.51930775]
[1730675606179,3.66621,2454.9,2454.4,0.85245775]
[1730675606637,7.33243,2454.9,2454.4,4.51925775]
[1730675606839,3.66621,2454.9,2454.4,4.51925775]
[1730675608082,3.88325837,2455.3,2454.4,0.85245775]
[1730675608083,0.7892,2455.2,2454.4,0.85245775]
[1730675608376,3.66562,2455.3,2454.4,0.85245775]
[1730675608377,3.66562,2455.3,2454.8,0.7568]
[1730675608530,3.66562,2455.3,2454.9,0.03908551]
[1730675608734,4.45445,2455.5,2454.9,0.03908551]
[1730675608931,3.66598,2455.0,2454.5,4.12754578]
[1730675609132,3.66598,2455.0,2454.6,0.03906046]
[1730675609369,3.6658,2455.2,2454.6,0.03906046]
[1730675609572,3.6658,2455.2,2454.6,3.70561046]
[1730675609782,4.49927084,2455.4,2454.7,3.6664]
[1730675609944,3.66561,2455.3,2454.8,0.038975]
[1730675610145,3.6655,2455.4,2454.8,0.038975]
[1730675610339,3.66549,2455.4,2454.9,0.7568]
[1730675610571,3.66554,2455.3,2455.0,0.03892126]
[1730675610888,3.66548,2455.4,2455.0,0.03892126]
[1730675611190,3.66548,2455.4,2455.0,3.70488126]
[1730675613286,4.45449,2455.5,2455.0,3.70488126]
[1730675613591,3.66543,2455.4,2455.0,0.03892126]
[1730675615215,3.66554,2455.3,2455.0,0.03892126]
[1730675615713,8.11983,2455.5,2455.0,3.70489126]
[1730675615916,4.45449,2455.5,2455.0,3.70489126]
[1730675616074,3.66541,2455.4,2455.0,3.70489126]
[1730675616700,4.45449,2455.5,2455.0,3.70489126]
[1730675616889,6.18176839,2456.5,2455.3,3.66544]
[1730675616890,4.45379,2456.0,2455.3,3.66544]
[1730675617092,4.45379,2456.0,2455.5,4.42204]
[1730675617314,3.66465,2455.9,2455.5,4.42204]
[1730675617622,3.66459,2456.0,2455.6,0.0382633]
[1730675617912,3.66457,2456.0,2455.6,0.0382633]
[1730675618482,3.66473,2455.9,2455.6,0.0382633]
[1730675618700,4.39766,2455.9,2455.6,0.0382633]
[1730675619521,0.73293,2455.9,2455.6,0.0382633]
[1730675620206,4.39761,2455.9,2455.6,0.0382633]
[1730675620382,3.66457,2456.0,2455.6,0.0382633]
[1730675620581,4.813677,2456.2,2455.7,3.521587]
[1730675620783,3.66425,2456.2,2455.8,0.03801946]
[1730675621020,3.66425,2456.2,2455.7,3.521587]
[1730675621193,3.66425,2456.2,2455.9,0.03799261]
[1730675621398,3.66444,2456.1,2455.6,3.66496]
[1730675621621,3.66425,2456.2,2455.7,0.03804632]
[1730675621797,3.66479,2455.8,2455.7,0.03804632]
[1730675622000,0.783,2456.0,2455.5,4.42203]
[1730675622001,3.66465,2455.9,2455.5,4.42203]
[1730675622304,3.66465,2455.9,2455.6,0.03807317]
[1730675622480,3.66479,2455.8,2455.6,0.03807317]
[1730675622686,3.66465,2455.9,2455.6,0.03807317]
[1730675622907,3.66465,2455.9,2455.4,3.66531]
[1730675623093,3.66465,2455.9,2455.7,0.03804632]
[1730675623310,3.66479,2455.8,2455.3,4.46012]
[1730675623485,3.66467,2455.9,2455.4,3.6653]
[1730675623684,3.66467,2455.9,2455.4,3.66539]
[1730675624101,7.32939,2455.9,2455.4,3.66539]
[1730675624397,3.66467,2455.9,2455.4,3.66539]
[1730675625325,3.66479,2455.8,2455.4,3.66539]
[1730675625535,3.66467,2455.9,2455.4,3.66539]
[1730675625737,3.66467,2455.9,2455.3,4.46012]
[1730675625738,3.66451,2456.0,2455.5,3.66522]
[1730675626040,7.32888,2456.1,2455.6,3.66507]
[1730675626597,7.3289,2456.1,2455.6,3.66507]
[1730675626793,7.3289,2456.1,2455.4,0.812551]
[1730675626794,3.66476,2455.9,2455.4,0.812551]
[1730675627140,3.66517,2455.6,2455.1,4.46033]
[1730675628020,3.66517,2455.6,2455.1,8.12609]
[1730675628199,3.66511,2455.6,2455.1,4.46033]
[1730675628399,3.66511,2455.6,2455.1,8.12608]
[1730675628596,3.66511,2455.6,2455.1,4.46033]
[1730675628804,3.66511,2455.6,2455.1,8.12608]
[1730675629010,4.44776,2455.9,2455.1,0.7946]
[1730675629198,3.66479,2455.8,2455.3,3.66547]
[1730675629410,3.66509,2455.6,2455.2,3.66565]
[1730675629608,3.66509,2455.6,2455.2,3.66562]
[1730675630307,3.66509,2455.6,2455.3,0.03789271]
[1730675630507,3.66461,2456.0,2455.3,3.70333271]
[1730675630722,3.66472,2455.9,2455.4,3.66537]
[1730675630942,3.66472,2455.9,2455.4,3.70316585]
[1730675631614,7.32944,2455.9,2455.4,3.70316585]
[1730675632004,7.32945,2455.9,2455.4,3.70316585]
[1730675632206,3.66472,2455.9,2455.4,3.70316585]
[1730675633036,7.32947,2455.9,2455.4,3.70316585]
[1730675633550,0.89603025,2455.9,2455.4,0.03786585]
[1730675633760,3.66503,2455.7,2455.4,0.03786585]
[1730675633947,3.66503,2455.7,2455.2,4.46027]
[1730675634352,3.66503,2455.7,2455.3,0.03793493]
[1730675634656,3.66509,2455.6,2455.2,4.46028]
[1730675634949,3.66509,2455.6,2455.4,0.03790806]
[1730675635125,3.66509,2455.6,2455.5,0.0378812]
[1730675635314,3.66509,2455.6,2455.2,4.46028]
[1730675635849,7.33028,2455.6,2455.3,0.03793493]
[1730675636016,3.66509,2455.6,2455.3,0.03793493]
[1730675636214,3.66509,2455.6,2455.2,0.7946]
[1730675636413,3.66489,2455.8,2455.3,0.03793493]
[1730675636614,3.66489,2455.8,2455.3,3.66552]
[1730675636956,3.66489,2455.8,2455.4,0.03790806]
[1730675638053,3.66496,2455.7,2455.4,0.03790806]
[1730675638366,7.33014,2455.7,2455.4,0.03790806]
[1730675638647,3.66506,2455.7,2455.2,4.46028]
[1730675638856,3.66506,2455.7,2455.5,0.0378812]
[1730675639054,4.398011,2455.7,2455.2,0.7946]
[1730675639218,3.66522,2455.6,2455.2,0.7946]
[1730675639418,3.66522,2455.6,2455.2,4.46027]
[1730675639639,3.66522,2455.6,2455.2,0.7946]
[1730675639954,3.66531,2455.5,2455.0,3.66588]
[1730675640159,3.66547,2455.4,2455.0,3.66588]
[1730675640330,3.66547,2455.4,2454.9,0.7946]
[1730675640331,3.66575,2455.2,2454.9,0.7946]
[1730675640513,4.476683,2455.5,2454.9,4.46069]
[1730675640839,3.66503,2455.7,2455.2,3.66562]
[1730675641047,3.6648,2455.8,2455.4,0.7946]
[1730675641770,3.66495,2455.7,2455.4,0.7946]
[1730675642252,3.66472,2455.9,2455.4,4.45992]
[1730675642461,3.66493,2455.8,2455.4,0.7946]
[1730675642753,3.66499,2455.7,2455.4,0.7946]
[1730675643055,3.66493,2455.8,2455.4,0.7946]
[1730675643445,3.66501,2455.7,2455.4,0.7946]
[1730675644217,3.66481,2455.8,2455.4,0.7946]
[1730675644756,3.66465,2455.9,2455.4,4.45991]
[1730675644962,3.66495,2455.7,2455.4,0.7946]
[1730675645321,3.66495,2455.7,2455.5,0.03796922]
[1730675645715,3.6648,2455.8,2455.5,0.03796922]
[1730675646156,4.109415,2455.9,2455.5,0.03796922]
[1730675646368,0.444765,2455.9,2455.5,0.03796922]
[1730675646654,3.66509,2455.6,2455.5,0.03796922]
[1730675646858,3.66509,2455.6,2455.2,4.46027]
[1730675647062,3.66509,2455.6,2455.5,0.03796922]
[1730675647259,3.66509,2455.6,2455.2,4.46027]
[1730675647419,3.66527,2455.5,2455.2,0.7946]
[1730675647625,4.480556,2455.5,2455.0,3.66589]
[1730675648278,8.145926,2455.5,2455.0,3.66589]
[1730675648476,3.66576,2455.2,2454.5,3.66662]
[1730675648661,3.66576,2455.2,2454.7,7.33265]
[1730675648863,7.33153,2455.2,2454.7,3.66631]
[1730675649079,3.6661,2455.0,2454.6,0.778]
[1730675649291,3.66639,2454.8,2454.4,0.778]
[1730675650275,3.66618,2454.9,2454.4,4.44487]
[1730675650664,3.66618,2454.9,2454.5,3.66672]
[1730675650868,3.66607,2455.0,2454.5,3.66672]
[1730675651036,4.4808013,2455.0,2454.5,3.66672]
[1730675651236,3.66625,2454.9,2454.4,4.44487]
[1730675652278,3.66628,2454.8,2454.4,0.778]
[1730675652606,7.33268,2454.8,2454.4,0.778]
[1730675652803,0.8228,2455.1,2454.4,0.778]
[1730675653010,3.66577,2455.2,2454.7,3.66635]
[1730675654283,3.66554,2455.3,2454.8,4.44427]
[1730675654571,4.48801,2455.6,2454.8,0.778]
[1730675654801,3.66521,2455.6,2455.2,0.778]
[1730675654997,3.66527,2455.5,2455.2,0.778]
[1730675658620,3.66509,2455.6,2455.2,0.778]
[1730675660184,3.66524,2455.5,2455.3,0.03826942]
[1730675660380,3.66524,2455.5,2455.2,0.778]
[1730675660680,3.66524,2455.5,2455.3,0.03826942]
[1730675661216,3.66524,2455.5,2455.4,0.03824255]
[1730675661415,3.66524,2455.5,2455.2,0.778]
[1730675661717,3.66524,2455.5,2455.3,0.03826942]
[1730675662277,3.66524,2455.5,2455.2,0.778]
[1730675662586,3.66511,2455.6,2455.3,0.03826942]
[1730675662891,3.66511,2455.6,2455.2,0.778]
[1730675663078,3.66511,2455.6,2455.4,0.03824255]
[1730675663277,4.398126,2455.6,2455.3,0.03826942]
[1730675663607,4.398126,2455.6,2455.2,0.778]
[1730675663803,4.398126,2455.6,2455.3,0.03826942]
[1730675663989,3.66524,2455.5,2455.2,0.778]
[1730675664191,3.66524,2455.5,2455.3,0.03826942]
[1730675664501,4.398126,2455.6,2455.2,0.778]
[1730675664814,4.398126,2455.6,2455.4,0.03824255]
[1730675665025,4.398126,2455.6,2455.2,0.778]
[1730675665226,4.398126,2455.6,2455.3,0.03826942]
[1730675665379,4.398126,2455.6,2455.2,0.778]
[1730675665716,4.398126,2455.6,2455.3,0.03826942]
[1730675666082,4.398126,2455.6,2455.2,0.778]
[1730675666419,4.398126,2455.6,2455.3,0.03826942]
[1730675666594,4.398126,2455.6,2455.2,0.778]
[1730675666794,4.398126,2455.6,2455.3,0.03826942]
[1730675667101,4.398126,2455.6,2455.2,4.44368]
[1730675667310,4.398126,2455.6,2455.4,0.03824255]
[1730675667475,4.398126,2455.6,2455.2,4.44368]
[1730675667476,4.398126,2455.6,2455.3,0.03826942]
[1730675668006,4.398126,2455.6,2455.4,0.03824255]
[1730675668208,4.398126,2455.6,2455.2,0.778]
[1730675668520,4.398126,2455.6,2455.3,0.03826942]
[1730675668908,4.398126,2455.6,2455.2,4.44366]
[1730675669445,3.66539,2455.4,2455.3,0.03826942]
[1730675669580,3.66563,2455.3,2454.8,3.66628]
[1730675669777,3.66563,2455.3,2454.9,0.0381621]
[1730675669981,3.66569,2455.2,2454.9,0.0381621]
[1730675670417,4.55996366,2455.3,2454.9,0.0381621]
[1730675670724,3.66542,2455.4,2454.9,7.3702421]
[1730675671383,3.66542,2455.4,2454.9,3.7041921]
[1730675672134,1.26104713,2455.7,2455.4,3.6653]
[1730675672287,3.66451,2456.0,2455.5,4.48847]
[1730675672625,3.66451,2456.0,2455.5,0.86140653]
[1730675672626,3.66471,2455.9,2455.5,0.86140653]
[1730675672979,3.66451,2456.0,2455.5,0.86140653]
[1730675672980,3.6645,2456.0,2455.5,4.52655653]
[1730675673785,2.06784713,2456.1,2455.6,3.66502]
[1730675673984,1.26104713,2456.2,2455.8,3.66477]
[1730675674181,5.73180713,2456.4,2455.9,0.86128855]
[1730675674436,3.66421,2456.2,2455.9,0.86128855]
[1730675675325,4.47076,2456.4,2455.9,0.86128855]
[1730675675526,4.23729071,2456.3,2455.9,0.86128855]
[1730675675915,3.66422,2456.2,2455.9,0.86128855]
[1730675676400,0.57318071,2456.3,2455.9,4.52590855]
[1730675676584,0.57318071,2456.3,2455.9,0.03798855]
[1730675676787,7.32848,2456.2,2455.7,4.48819]
[1730675676983,3.6642,2456.2,2455.8,0.0380154]
[1730675677232,3.6642,2456.2,2455.7,4.48819]
[1730675677594,3.6642,2456.2,2455.8,0.0380154]
[1730675677926,7.3285,2456.2,2455.7,4.48819]
[1730675678101,7.3285,2456.2,2455.9,0.03798855]
[1730675678296,7.3285,2456.2,2455.8,0.0380154]
[1730675678529,3.6642,2456.2,2456.0,0.0379617]
[1730675678727,3.6642,2456.2,2455.9,0.03798855]
[1730675679223,3.6642,2456.2,2456.0,0.0379617]
[1730675679426,7.32848,2456.2,2455.7,4.48819]
[1730675679725,3.6642,2456.2,2455.8,0.0380154]
[1730675680231,3.66456,2456.0,2455.9,0.03798855]
[1730675680388,3.66456,2456.0,2455.5,3.66515]
[1730675680832,3.66456,2456.0,2455.6,0.03790014]
[1730675682228,7.3288,2456.1,2455.6,0.03790014]
[1730675682406,3.66436,2456.1,2455.6,0.03790014]
[1730675682603,3.6645,2456.0,2455.6,0.03790014]
[1730675682805,3.66469,2455.9,2455.6,0.03790014]
[1730675683021,3.6645,2456.0,2455.6,0.03790014]
[1730675684334,3.6645,2456.0,2455.6,3.70296014]
[1730675685019,0.8266,2455.9,2455.6,0.03790014]
[1730675685222,0.8266,2455.9,2454.7,1.7043186]
[1730675685223,3.66494,2455.7,2455.1,4.44834]
[1730675685405,3.66494,2455.7,2455.2,3.66566]
[1730675685654,7.33002,2455.7,2455.2,3.66566]
[1730675685967,3.66494,2455.7,2455.2,3.66566]
[1730675686166,7.779134,2455.7,2455.2,3.66566]
[1730675686332,7.779124,2455.7,2455.2,3.66566]
[1730675687058,4.114094,2455.7,2455.2,3.66566]
[1730675687367,3.66509,2455.6,2455.2,3.66566]
[1730675688356,3.66494,2455.7,2455.2,3.66566]
[1730675688528,7.32999,2455.7,2455.2,3.66566]
[1730675688743,3.66511,2455.6,2455.1,0.7826]
[1730675689077,3.66511,2455.6,2455.1,4.44842]
[1730675689968,3.66511,2455.6,2455.2,3.66568]
[1730675690476,0.8266,2455.9,2455.2,3.66568]
[1730675690477,4.49104,2456.1,2455.6,3.66507]
[1730675690631,3.66416,2456.3,2455.8,4.44731]
[1730675690836,7.32835,2456.3,2455.8,4.44731]
[1730675691463,3.6642,2456.2,2455.8,0.7826]
[1730675691775,3.66435,2456.1,2455.8,0.7826]
[1730675691939,3.6642,2456.2,2455.8,0.7826]
[1730675692858,3.66436,2456.1,2455.8,0.7826]
[1730675693737,3.6642,2456.2,2455.8,0.7826]
[1730675693940,3.6642,2456.2,2455.8,0.63864]
[1730675694830,3.6642,2456.2,2455.8,4.3034]
[1730675695037,4.92474713,2456.6,2456.0,3.66442]
[1730675695335,3.6637,2456.6,2456.1,3.66424]
[1730675695539,3.6637,2456.6,2456.2,3.66419]
[1730675696132,3.6637,2456.6,2456.1,3.66424]
[1730675696933,3.6637,2456.6,2456.1,7.32849]
[1730675697077,3.66376,2456.5,2456.2,0.7826]
[1730675697393,3.6639,2456.4,2456.0,0.7826]
[1730675698283,3.66371,2456.6,2456.0,0.7826]
[1730675698453,3.66385,2456.5,2456.0,4.44701]
[1730675699344,3.66385,2456.5,2456.0,0.7826]
[1730675699687,3.66389,2456.4,2456.0,0.7826]
[1730675699842,3.66389,2456.4,2456.0,4.44708]
[1730675700558,3.66382,2456.5,2456.0,4.44708]
[1730675700758,7.32768,2456.5,2456.0,4.44708]
[1730675700972,3.66429,2456.2,2455.7,3.66494]
[1730675701350,3.66429,2456.2,2455.7,3.66487]
[1730675701654,3.6649,2455.8,2455.4,0.7826]
[1730675701853,3.66517,2455.6,2455.1,0.7826]
[1730675702049,3.6655,2455.4,2454.9,8.17578875]
[1730675702253,3.66555,2455.3,2454.9,4.50973875]
[1730675702673,1.55969,2455.3,2454.5,0.7826]
[1730675702880,3.66584,2455.1,2454.6,3.66649]
[1730675703392,3.66571,2455.2,2454.7,3.66635]
[1730675704252,3.66585,2455.1,2454.7,3.66635]
[1730675704488,4.49217,2455.3,2454.5,4.44923]
[1730675704489,3.66606,2455.0,2454.5,4.44923]
[1730675704690,3.66635,2454.8,2454.3,3.66693]
[1730675704922,8.15931,2454.8,2454.3,3.66693]
[1730675705187,3.66651,2454.7,2454.2,0.7826]
[1730675705364,4.49295,2454.8,2454.2,0.7826]
[1730675705563,4.49295,2454.8,2454.3,3.66694]
[1730675705751,0.8266,2454.8,2454.3,3.66694]
[1730675705955,3.66607,2455.0,2454.5,3.66665]
[1730675706490,4.49244,2455.1,2454.6,3.6665]
[1730675707187,4.49244,2455.1,2454.4,3.66687]
[1730675707188,3.66611,2455.0,2454.4,3.66688]
[1730675707691,7.54865837,2455.4,2454.1,3.0]
[1730675707692,3.66564,2455.3,2454.7,3.66643]
[1730675707901,0.8312,2455.4,2454.6,4.70275837]
[1730675708057,3.66524,2455.5,2455.0,3.66591]
[1730675708249,3.66547,2455.4,2454.8,3.66616]
[1730675708465,3.6657,2455.2,2454.8,3.66616]
[1730675708696,3.6657,2455.2,2454.7,3.66639]
[1730675709075,3.66555,2455.3,2454.8,3.66616]
[1730675709387,3.66555,2455.3,2454.9,3.66612]
[1730675711687,7.33062,2455.5,2454.9,3.66612]
[1730675712004,3.66546,2455.4,2454.9,3.66612]
[1730675713211,3.66546,2455.4,2454.7,4.781546]
[1730675713359,3.66546,2455.4,2454.3,0.8195]
[1730675713360,3.66611,2455.0,2454.3,0.8195]
[1730675713686,4.49681,2455.3,2454.8,0.8195]
[1730675713863,4.49681,2455.3,2454.8,4.48577]
[1730675714062,3.66539,2455.4,2454.8,5.300926]
[1730675714288,3.66533,2455.5,2454.9,3.66603]
[1730675714475,3.66543,2455.4,2454.9,3.66603]
[1730675715213,3.66636,2454.8,2454.3,0.8195]
[1730675715498,7.33273,2454.8,2454.3,4.48651]
[1730675716001,7.33273,2454.8,2454.3,0.8195]
[1730675716178,3.66647,2454.7,2454.3,0.8195]
[1730675716380,3.66636,2454.8,2454.3,0.8195]
[1730675716701,3.66644,2454.7,2454.3,0.8195]
[1730675716919,3.66644,2454.7,2454.2,3.66704]
[1730675717562,4.116116,2454.8,2454.2,3.66704]
[1730675717902,3.88325837,2455.4,2454.2,3.66704]
[1730675717903,0.8312,2455.2,2455.0,3.66596]
[1730675718210,3.66539,2455.4,2454.9,3.88325837]
[1730675718410,3.66539,2455.4,2454.8,3.66617]
[1730675718580,3.66555,2455.3,2454.8,4.50306284]
[1730675718907,7.33092,2455.4,2454.8,8.16926284]
[1730675719106,3.66539,2455.4,2454.8,8.16927284]
[1730675719271,4.49653,2455.5,2454.8,4.50307284]
[1730675719477,3.66541,2455.4,2454.9,3.66603]
[1730675720102,3.66541,2455.4,2455.0,3.66597]
[1730675720877,3.66541,2455.4,2454.9,3.66612]
[1730675721403,3.66541,2455.4,2455.0,3.66597]
[1730675721705,3.0,2456.0,2455.3,3.66545]
[1730675721706,4.49608,2455.8,2455.3,3.66545]
[1730675721866,0.8312,2456.0,2455.5,4.48472]
[1730675722067,4.92534713,2456.2,2455.6,3.66497]
[1730675722068,8.1598,2456.2,2455.6,3.66497]
[1730675722398,8.1598,2456.2,2455.7,7.32975]
[1730675722399,4.98803471,2456.2,2455.7,7.32975]
[1730675722604,0.8312,2456.2,2455.8,3.66475]
[1730675722820,7.328,2456.4,2455.8,3.66475]
[1730675723196,3.66412,2456.3,2455.8,3.66475]
[1730675724326,1.75313271,2456.5,2456.0,0.7995]
[1730675724523,0.94153271,2456.5,2456.0,4.46392]
[1730675724726,4.47506,2456.7,2456.1,3.66434]
[1730675725037,4.47506,2456.7,2456.2,3.66411]
[1730675725250,3.66339,2456.8,2456.3,3.66402]
[1730675725251,7.32678,2456.8,2456.3,3.66402]
[1730675725534,3.66339,2456.8,2456.3,3.66402]
[1730675725707,3.66339,2456.8,2456.3,7.32797]
[1730675725911,4.477199,2456.8,2456.3,3.66395]
[1730675726598,0.813809,2456.8,2456.4,3.66389]
[1730675726830,3.66279,2457.2,2456.6,3.66357]
[1730675726831,3.66287,2457.1,2456.6,3.66357]
[1730675726996,3.66297,2457.1,2456.5,3.66364]
[1730675727334,3.66285,2457.1,2456.5,3.66364]
[1730675727849,0.8116,2457.3,2456.7,3.66343]
[1730675728026,4.92353713,2457.4,2456.9,3.66314]
[1730675728027,3.66249,2457.4,2456.9,3.66314]
[1730675728231,0.49235371,2457.4,2456.9,3.66307]
[1730675729003,0.49235371,2457.4,2456.8,0.7995]
[1730675729004,3.66271,2457.2,2456.8,0.7995]
[1730675730143,7.81739371,2457.4,2456.8,4.46278]
[1730675730442,4.44430937,2457.3,2456.8,0.7995]
[1730675730645,0.78173937,2457.3,2456.8,4.46271]
[1730675730857,3.66272,2457.2,2456.6,3.0]
[1730675731504,7.32552,2457.2,2456.6,6.66359]
[1730675732252,7.32552,2457.2,2456.7,0.08447799]
[1730675732545,4.395272,2457.2,2456.7,0.08447799]
[1730675732844,4.395272,2457.2,2456.6,6.66359]